Cogmind - Beta 10.1 @@@ ROGUE MODE // 2021.05.23 @ 10:51:27 Player: Farfid Result: Self-destructed Performance ------------- Evolutions (3) 1500 Regions Visited (12) 2400 Robots Destroyed (112) 560 Value Destroyed (2609) 2609 Prototype IDs (15) 300 Alien Tech Used (1) 200 Bonus (391) 391 TOTAL SCORE: 7960 Bonus ------- High Alert Combat Kills 6 Follower Combat Kills 144 Met Data Miner 300 Friendly Fire -59 Cogmind --------- Core Integrity 549/700 Matter 284/300 Energy 90/100 System Corruption 0% Temperature Cool (0) Movement Rolling (110) Ox1 Location -6/Proximity Caves Parts ------- > --- POWER (2) -------- (None) > --- PROPULSION (3) --- Carbon-fiber Leg Armored Huge Wheel > --- UTILITY (6) ------ Improved Cooling System High-capacity Storage Unit Advanced Terrain Scanner Improved Light Armor Plating Improved Medium Armor Plating > --- WEAPON (3) ------- Gauss Rifle Gauss Rifle > --- INVENTORY (12) --- Armored Huge Wheel Fusion Compressor Energy Filter Improved EM Pulse Cannon Improved EM Pulse Cannon Plasma Cannon Gauss Rifle Gauss Cannon Proton Missile Launcher Proton Missile Launcher Scythe Peak State ------------ > --- POWER ------------ Micro Nuclear Core > --- PROPULSION ------- Compact Wheel Armored Huge Wheel > --- UTILITY ---------- Improved Cooling System High-capacity Storage Unit Matter Filter Hardened Heavy Armor Plating Improved Medium Armor Plating > --- WEAPON ----------- Gauss Rifle Precision Assault Rifle Precision Grenade Launcher > --- INVENTORY -------- Light Angular Momentum Engine Armored Huge Wheel Energy Filter Hardened Medium Armor Plating Improved EM Pulse Cannon Improved EM Pulse Cannon Plasma Cannon Gauss Rifle Gauss Rifle Rocket Launcher Spear [Rating: 52] Favorites ----------- Power Micro Nuclear Core Engine Light Ion Engine Power Core Micro Nuclear Core Propulsion Compact Wheel Treads Improved Treads Leg Carbon-fiber Leg Wheel Compact Wheel Utility High-capacity Storage Unit Device Improved Cooling System Storage High-capacity Storage Unit Protection Hardened Heavy Armor Plating Weapon Gauss Rifle Energy Gun Heavy Particle Gun Energy Cannon Plasma Cannon Ballistic Gun Gauss Rifle Ballistic Cannon Gauss Cannon Launcher Rocket Launcher Slashing Weapon Scythe Build | -11 -10 -10 -9 -9 -9 -8 -8 -7 -7 -7 -7 -6 ------- Run | Scr Mat Min Mat Min Exi Min Mat Fac Low Low Dat Pro Slots Evolved 6 | . . . 2 . . . 2 2 . . . . Power . | . . . . . . . . . . . . . Propulsion 1 | . . . 1 . . . . . . . . . Utility 4 | . . . 1 . . . 1 2 . . . . Weapon 1 | . . . . . . . 1 . . . . . Parts Attached 102 | 6 12 3 6 21 2 2 13 20 6 6 . 5 Power 6 | 1 1 . . 2 . . . 1 1 . . . Engine 5 | 1 1 . . 1 . . . 1 1 . . . Core 1 | . . . . 1 . . . . . . . . Reactor . | . . . . . . . . . . . . . Propulsion 18 | 2 3 . 1 5 . . 2 1 1 3 . . Treads 2 | . . . . . . . . . 1 1 . . Leg 1 | . . . . . . . . . . 1 . . Wheel 15 | 2 3 . 1 5 . . 2 1 . 1 . . Hover . | . . . . . . . . . . . . . Flight . | . . . . . . . . . . . . . Utility 21 | 1 2 . 1 3 1 . 3 6 1 1 . 2 Device 5 | . 1 . . 1 . . . 2 . . . 1 Storage 3 | 1 1 . . . 1 . . . . . . . Processor . | . . . . . . . . . . . . . Hackware . | . . . . . . . . . . . . . Protection 13 | . . . 1 2 . . 3 4 1 1 . 1 Artifact . | . . . . . . . . . . . . . Weapon 57 | 2 6 3 4 11 1 2 8 12 3 2 . 3 Energy Gun 5 | 1 1 . . . . . 2 1 . . . . Energy Cannon 6 | . 1 1 . 2 1 . . 1 . . . . Ballistic Gun 15 | 1 1 . . 1 . 1 4 5 1 1 . . Ballistic Cannon 11 | . 2 1 2 3 . . . 2 1 . . . Launcher 17 | . 1 1 2 5 . 1 2 3 . . . 2 Special Weapon . | . . . . . . . . . . . . . Impact Weapon . | . . . . . . . . . . . . . Slashing Weapon 3 | . . . . . . . . . 1 1 . 1 Piercing Weapon . | . . . . . . . . . . . . . Special Melee Weapon . | . . . . . . . . . . . . . Unidentified Prototypes 6 | . . . . . . . 3 2 1 . . . Parts Lost 13 | . 3 . . 4 . . . 1 1 2 . 2 Power 2 | . . . . 1 . . . . 1 . . . Propulsion 4 | . 2 . . 1 . . . 1 . . . . Utility 3 | . . . . . . . . . . 2 . 1 Weapon 4 | . 1 . . 2 . . . . . . . 1 Highest Loss Streak 3 | . 2 . . 3 . . . 1 1 1 . 1 Average Slot Usage (%) 84 | . 92 100 81 98 100 100 97 84 74 65 64 65 Engine 4 | . 14 14 11 9 . . . . 2 . . . Core 2 | . . . . 1 11 11 9 6 . . . . Treads 1 | . . . . . . . . . 3 5 . . Wheel 18 | . 26 28 23 32 33 33 27 14 7 6 7 7 Device 11 | . 8 14 11 11 11 11 9 14 14 10 7 8 Storage 9 | . 14 14 11 11 11 11 9 7 7 7 7 7 Protection 11 | . . . 1 11 11 11 17 16 14 12 14 14 Energy Gun 1 | . 9 . . . . . 7 . . . . . Energy Cannon 4 | . 2 14 11 9 10 8 . 1 6 . . . Ballistic Gun 10 | . 4 . . 5 11 12 17 15 7 14 14 14 Ballistic Cannon 4 | . 9 13 10 4 . . . 4 5 . . . Slashing Weapon 1 | . . . . . . . . . 1 7 7 6 Naked Turns . | . . . . . . . . . . . . . Heaviest Build 91 | 10 28 27 32 36 53 53 59 91 91 74 67 69 Greatest Support 48 | 20 32 32 48 48 42 42 42 44 28 43 28 28 Greatest Overweight (x) 3 | . 1 . . . 1 1 1 3 3 3 2 2 Average Overweight (x) 1 | . . . . . . 1 1 1 2 1 2 1 Largest Inventory Capacity 12 | 6 12 10 10 10 12 12 12 12 12 12 12 12 Average Capacity 11 | 5 8 10 10 10 11 12 12 12 12 12 12 12 Most Carried 12 | 2 10 10 10 10 10 11 12 12 12 12 12 12 Average Carried 10 | 1 7 9 9 8 10 10 11 11 11 12 12 11 Final Capacity 12 | 6 10 10 10 10 12 12 12 12 12 12 12 12 Final Carried 12 | 2 10 10 8 10 10 11 12 12 12 12 12 12 Class Distribution -------------------- 63% | Mutant 20% | Scavenger-Mutant 11% | Scavenger-Tank 4% | Tank Dominant Class ---------------- Mutant | -10/Materials Mutant | -10/Mines Mutant | -9/Materials Scavenger-Mutant | -9/Mines Scavenger-Mutant | -9/Exiles Scavenger-Mutant | -8/Mines Scavenger-Tank | -8/Materials Mutant | -7/Factory Mutant | -7/Lower Caves Mutant | -7/Lower Caves Mutant | -7/Data Miner Mutant | -6/Proximity Caves Resources | -11 -10 -10 -9 -9 -9 -8 -8 -7 -7 -7 -7 -6 ----------- Run | Scr Mat Min Mat Min Exi Min Mat Fac Low Low Dat Pro Matter Collected 2696 | 199 170 250 71 586 . 61 415 411 251 142 . 140 Remotely . | . . . . . . . . . . . . . Salvage Created 3189 | . 409 171 170 300 . 25 871 602 126 363 . 152 Parts 175 | . 30 7 11 12 . 7 53 31 3 13 . 8 Haulers Intercepted 2 | . . . . . . . 2 . . . . . Recyclers Shooed 7 | . 3 . . 1 . . 3 . . . . . Parts Field Recycled . | . . . . . . . . . . . . . Retrieved Matter . | . . . . . . . . . . . . . Parts Self-Destructed 25 | . . . . . . . . . 2 9 . 14 Prevented . | . . . . . . . . . . . . . Kills | -11 -10 -10 -9 -9 -9 -8 -8 -7 -7 -7 -7 -6 ------- Run | Scr Mat Min Mat Min Exi Min Mat Fac Low Low Dat Pro Combat Hostiles Destroyed 81 | . 11 3 2 21 . 4 13 12 4 7 . 4 Melee 2 | . . . . 1 . . . . . 1 . . Guns 26 | . . . . 4 . . 8 4 1 6 . 3 Cannons 15 | . 6 . 1 2 . . . 3 3 . . . AOE 38 | . 5 3 1 14 . 4 5 5 . . . 1 Classes Destroyed 17 | . 5 . . 2 . . 4 3 2 1 . . Worker 11 | . . . . 1 . 1 4 5 . . . . Builder 1 | . . . . . . . . 1 . . . . Tunneler 1 | . . . . . . . 1 . . . . . Hauler 2 | . . . . . . . 2 . . . . . Recycler 10 | . 2 2 1 1 . . 3 1 . . . . Operator 1 | . 1 . . . . . . . . . . . Watcher 5 | . 3 . 1 . . . 1 . . . . . Swarmer 21 | . 3 3 . 2 . 4 5 . . 2 . 2 Grunt 26 | . 8 . 2 3 . . 1 7 2 2 . 1 Brawler 1 | . . . . . . . . . . 1 . . Duelist 1 | . . . . . . . . 1 . . . . Sentry 8 | . . . . . . . 5 1 . 1 . 1 Hunter 5 | . . . . . . . 2 2 . 1 . . Programmer 1 | . . . . . . . . 1 . . . . Behemoth 1 | . . . . . . . . . 1 . . . Assembled 16 | . . . . 16 . . . . . . . . Mutant 1 | . . . . . . . . . 1 . . . Best Kill Streak 10 | . 9 4 2 10 . 4 4 6 2 3 . 2 Combat Bots Only 5 | . 5 3 1 5 . 4 3 4 2 3 . 2 Max Kills in Single Turn 3 | . 2 2 2 3 . 3 3 3 1 1 . 1 Gunslinging . | . . . . . . . . . . . . . Exploded 3 | . 2 2 1 3 . 3 3 2 . . . 1 Melee 1 | . . . . 1 . . . . . 1 . . Uniques/NPCs Destroyed . | . . . . . . . . . . . . . Combat | -11 -10 -10 -9 -9 -9 -8 -8 -7 -7 -7 -7 -6 -------- Run | Scr Mat Min Mat Min Exi Min Mat Fac Low Low Dat Pro Damage Taken 4027 | . 392 29 21 667 . 10 390 576 858 534 . 550 Core 356 | . 50 6 . 99 . 10 40 30 61 41 . 19 Absorbed by Shields 176 | . . . . . . . . 176 . . . . Core Remaining (%) 85 | 100 . 77 . . . 72 92 . . . . . Volleys Fired 273 | . 39 13 6 59 . 3 47 44 40 9 . 13 Largest 3 | . 2 1 2 2 . 2 3 3 3 2 . 2 Hottest 156 | . 89 60 99 99 . 100 105 128 156 56 . 56 Shots Fired 501 | . 61 13 8 91 . 4 127 90 67 18 . 22 Gun 276 | . 22 . . 23 . 1 124 61 9 18 . 18 Cannon 172 | . 31 10 5 46 . 1 . 21 58 . . . Launcher 53 | . 8 3 3 22 . 2 3 8 . . . 4 Special . | . . . . . . . . . . . . . Kinetic 309 | . 31 . 2 32 . 1 88 80 39 18 . 18 Thermal 139 | . 22 10 3 37 . 1 36 2 28 . . . Explosive 53 | . 8 3 3 22 . 2 3 8 . . . 4 Electromagnetic . | . . . . . . . . . . . . . Robot Hit Streak 12 | . 8 3 5 6 . . 9 12 10 7 . 3 Robot Miss Streak 5 | . 4 3 1 4 . 4 3 3 2 1 . 5 Penetration Max 1 | . . . . . . . . 1 . 1 . . Secondary Targets 4 | . . . . . . . . 1 . 3 . . Max Gunslinging Chain 1 | . . . . . . . . 1 . 1 . . Shots Hit Robots 298 | . 38 5 5 43 . . 73 57 45 24 . 8 Core Hits 193 | . 27 5 5 41 . 5 35 39 12 12 . 12 Critical Hits 6 | . . . . . . . 1 1 4 . . . Critical Kills 2 | . . . . . . . 1 1 . . . . Critical Parts Destroyed 4 | . . . . . . . . . 4 . . . Melee Attacks 27 | . . . . . . . . . 10 14 . 3 Impact . | . . . . . . . . . . . . . Slashing 27 | . . . . . . . . . 10 14 . 3 Piercing . | . . . . . . . . . . . . . Sneak Attacks 2 | . . . . . . . . . . 2 . . Combat Hostiles . | . . . . . . . . . . . . . Follow-up Attacks . | . . . . . . . . . . . . . Damage Inflicted 9911 | . 1210 314 296 1940 . 263 1546 1813 1144 896 . 489 Guns 2974 | . 214 . . 94 . 14 1120 888 151 300 . 193 Cannons 2205 | . 370 106 77 495 . . . 164 993 . . . Explosions 4072 | . 626 208 219 1347 . 249 426 761 . . . 236 Melee 644 | . . . . . . . . . . 584 . 60 Ramming 16 | . . . . 4 . . . . . 12 . . Kinetic 3467 | . 370 . 43 222 . 14 640 1019 666 300 . 193 Thermal 1712 | . 214 106 34 367 . . 480 33 478 . . . Explosive 4072 | . 626 208 219 1347 . 249 426 761 . . . 236 Electromagnetic . | . . . . . . . . . . . . . Impact . | . . . . . . . . . . . . . Slashing 644 | . . . . . . . . . . 584 . 60 Piercing . | . . . . . . . . . . . . . Highest Corruption 2 | . . . . . . . 2 . . . . . Average Corruption 1 | . . . . . . . 1 . . . . . Corruption Purged . | . . . . . . . . . . . . . Effects 7 | . . . . . . . 7 . . . . . Message Errors 1 | . . . . . . . 1 . . . . . Heat Flow Errors 2 | . . . . . . . 2 . . . . . Energy Discharges 2 | . . . . . . . 2 . . . . . Targeting Errors 2 | . . . . . . . 2 . . . . . Overload Shots . | . . . . . . . . . . . . . Overflow Damage 441 | . 37 6 4 61 . . 14 40 15 246 . 18 Projectiles 37 | . 1 6 . 15 . . . . 15 . . . Explosions 158 | . 36 . 4 46 . . 14 40 . . . 18 Melee 246 | . . . . . . . . . . 246 . . Knockbacks 10 | . 6 . 1 1 . . . . 2 . . . Impact . | . . . . . . . . . . . . . Kinetic 10 | . 6 . 1 1 . . . . 2 . . . Secondary . | . . . . . . . . . . . . . Self-Inflicted Damage 120 | . 30 . 21 5 . . . 43 . 6 . 15 Shots 5 | . 1 . 1 1 . . . 1 . . . 1 Rammed 3 | . . . . 1 . . . . . 2 . . Targets Rammed 3 | . . . . 1 . . . . . 2 . . Kicked . | . . . . . . . . . . . . . Crushed . | . . . . . . . . . . . . . Highest Temperature 269 | . 184 . . 84 . 9 179 269 170 12 . 6 Average Temperature 58 | . 57 . . 39 . 6 57 55 71 4 . 6 Received Heat Transfer 925 | . 183 . . 105 . . 81 146 212 90 . 108 Siege Activations . | . . . . . . . . . . . . . Robots Corrupted . | . . . . . . . . . . . . . Combat Hostiles . | . . . . . . . . . . . . . Parts Fried . | . . . . . . . . . . . . . Impact Corruptions . | . . . . . . . . . . . . . Robots Melted . | . . . . . . . . . . . . . Combat Hostiles . | . . . . . . . . . . . . . Parts Melted 2 | . . . . 1 . . . 1 . . . . Heat Transferred 3614 | . 629 222 74 777 . . 962 50 900 . . . Parts Sabotaged . | . . . . . . . . . . . . . Parts Stolen 1 | . . . . . . . . . 1 . . . Parts Stripped . | . . . . . . . . . . . . . Power Chain Reactions . | . . . . . . . . . . . . . Missiles Intercepted . | . . . . . . . . . . . . . Alert | -11 -10 -10 -9 -9 -9 -8 -8 -7 -7 -7 -7 -6 ------- Run | Scr Mat Min Mat Min Exi Min Mat Fac Low Low Dat Pro Peak Influence 471 | . 411 162 98 147 . 125 471 380 . . . . Initial 183 | . . 87 1 37 . . 48 183 . . . . Average 157 | . 204 137 47 50 . 23 272 225 . . . . Maximum Alert Level 2 | . 2 . . . . . 2 1 . . . . Low Security (%) 68 | 100 41 100 100 100 . 100 26 51 . . . . Level 1 29 | . 51 . . . . . 68 48 . . . . Level 2 1 | . 7 . . . . . 4 . . . . . Level 3 . | . . . . . . . . . . . . . Level 4 . | . . . . . . . . . . . . . Level 5 . | . . . . . . . . . . . . . High Security . | . . . . . . . . . . . . . Max Security . | . . . . . . . . . . . . . Squads Dispatched 13 | . 3 . 1 1 . . 1 7 . . . . Investigation 2 | . 1 . . 1 . . . . . . . . Extermination 2 | . . . . . . . . 2 . . . . Reinforcement 6 | . 2 . 1 . . . 1 2 . . . . Assault . | . . . . . . . . . . . . . Garrison 3 | . . . . . . . . 3 . . . . Intercept . | . . . . . . . . . . . . . Construction Impeded 2 | . . . . . . . . 2 . . . . Haulers Reinforced . | . . . . . . . . . . . . . Stealth | -11 -10 -10 -9 -9 -9 -8 -8 -7 -7 -7 -7 -6 --------- Run | Scr Mat Min Mat Min Exi Min Mat Fac Low Low Dat Pro Distress Signals 8 | . 2 1 2 . . . 3 . . . . . Communications Jammed . | . . . . . . . . . . . . . Distress Signals . | . . . . . . . . . . . . . Times Spotted 120 | . 19 2 5 25 . 1 23 13 9 10 . 13 Peak Tracking Total 9 | . 9 2 5 5 . 1 5 4 2 3 . 9 Tactical Retreats 13 | . 2 . . 1 . . 3 . 4 3 . . Traps | -11 -10 -10 -9 -9 -9 -8 -8 -7 -7 -7 -7 -6 ------- Run | Scr Mat Min Mat Min Exi Min Mat Fac Low Low Dat Pro Traps Triggered 4 | . 2 . . . . . 2 . . . . . Indirectly . | . . . . . . . . . . . . . Trap Hack Attempts . | . . . . . . . . . . . . . Triggered . | . . . . . . . . . . . . . Disarmed . | . . . . . . . . . . . . . Reprogrammed . | . . . . . . . . . . . . . Reused . | . . . . . . . . . . . . . Traps Extracted . | . . . . . . . . . . . . . Installed . | . . . . . . . . . . . . . Triggered 1 | . . . . . . . . . 1 . . . Machines | -11 -10 -10 -9 -9 -9 -8 -8 -7 -7 -7 -7 -6 ---------- Run | Scr Mat Min Mat Min Exi Min Mat Fac Low Low Dat Pro Machines Disabled 9 | . 3 . . . . 1 . 3 2 . . . Max in Single Turn 1 | . 1 . . . . 1 . 1 1 . . . Machines Sabotaged . | . . . . . . . . . . . . . Garrisons Compromised . | . . . . . . . . . . . . . Overloaded Fab Kills . | . . . . . . . . . . . . . Fab Network Shutdowns . | . . . . . . . . . . . . . Hacking | -11 -10 -10 -9 -9 -9 -8 -8 -7 -7 -7 -7 -6 --------- Run | Scr Mat Min Mat Min Exi Min Mat Fac Low Low Dat Pro Machines Accessed 22 | . 5 1 4 1 1 . . 5 1 . 4 . Terminals 11 | . 4 . 4 . . . . 3 . . . . Fabricators 1 | . . . . . . . . 1 . . . . Repair Stations . | . . . . . . . . . . . . . Recycling Units 1 | . 1 . . . . . . . . . . . Scanalyzers . | . . . . . . . . . . . . . Garrison Access 1 | . . . . . . . . 1 . . . . Total Hacks 65 | . 8 1 17 1 1 . . 10 1 . 26 . Successful 43 | . 1 1 11 1 1 . . 1 1 . 26 . Failed 22 | . 7 . 6 . . . . 9 . . . . Catastrophic 4 | . 2 . 1 . . . . 1 . . . . Database Lockouts . | . . . . . . . . . . . . . Manual 18 | . 2 . 13 . . . . 3 . . . . Terminals 28 | . 6 . 17 . . . . 5 . . . . Fabricators 2 | . . . . . . . . 2 . . . . Repair Stations . | . . . . . . . . . . . . . Recycling Units 2 | . 2 . . . . . . . . . . . Scanalyzers . | . . . . . . . . . . . . . Garrison Access 3 | . . . . . . . . 3 . . . . Terminal Hacks 37 | . . 1 7 1 1 . . . 1 . 26 . Record 12 | . . . . . 1 . . . . . 11 . Part Schematic 5 | . . . 1 . . . . . . . 4 . Robot Schematic 8 | . . . . . . . . . . . 8 . Prototype ID Bank 4 | . . . 1 . . . . . . . 3 . Open Door 3 | . . 1 . 1 . . . . 1 . . . Branch Access Points 1 | . . . 1 . . . . . . . . . Unreport Threat 1 | . . . 1 . . . . . . . . . Locate Traps 1 | . . . 1 . . . . . . . . . Recall Investigation 1 | . . . 1 . . . . . . . . . Zone Layout 1 | . . . 1 . . . . . . . . . Fabricator Hacks 1 | . . . . . . . . 1 . . . . Build 1 | . . . . . . . . 1 . . . . Repair Station Hacks . | . . . . . . . . . . . . . Recycling Unit Hacks . | . . . . . . . . . . . . . Scanalyzer . | . . . . . . . . . . . . . Garrison Access Hacks . | . . . . . . . . . . . . . Unauthorized Hacks 5 | . 1 . 4 . . . . . . . . . Terminals 4 | . . . 4 . . . . . . . . . Track 3 | . . . 3 . . . . . . . . . Botnet 1 | . . . 1 . . . . . . . . . Fabricators . | . . . . . . . . . . . . . Repair Stations . | . . . . . . . . . . . . . Recycling Units 1 | . 1 . . . . . . . . . . . Tunnel 1 | . 1 . . . . . . . . . . . Scanalyzers . | . . . . . . . . . . . . . Garrison Access . | . . . . . . . . . . . . . Data Cores Recovered . | . . . . . . . . . . . . . Used . | . . . . . . . . . . . . . Hacking Detections 14 | . 5 . 4 . . . . 5 . . . . Full Trace Events 1 | . . . 1 . . . . . . . . . Feedback Events . | . . . . . . . . . . . . . Feedback Blocked . | . . . . . . . . . . . . . Robot Schematics Acquired 8 | . . . . . . . . . . . 8 . Robots Built . | . . . . . . . . . . . . . Matter . | . . . . . . . . . . . . . Time . | . . . . . . . . . . . . . Total Robot Build Rating . | . . . . . . . . . . . . . Part Schematics Acquired 5 | . . . 1 . . . . . . . 4 . Parts Built 1 | . . . . . . . . 1 . . . . Matter 168 | . . . . . . . . 168 . . . . Time 84 | . . . . . . . . 84 . . . . Total Part Build Rating 4 | . . . . . . . . 4 . . . . Parts Repaired . | . . . . . . . . . . . . . Time . | . . . . . . . . . . . . . Parts Recycled . | . . . . . . . . . . . . . Recycled Matter . | . . . . . . . . . . . . . Retrieved Matter . | . . . . . . . . . . . . . Retrieved Components . | . . . . . . . . . . . . . Parts Scanalyzed . | . . . . . . . . . . . . . Part Schematics Acquired . | . . . . . . . . . . . . . Parts Damaged . | . . . . . . . . . . . . . Bothacking | -11 -10 -10 -9 -9 -9 -8 -8 -7 -7 -7 -7 -6 ------------ Run | Scr Mat Min Mat Min Exi Min Mat Fac Low Low Dat Pro Used RIF Installer . | . . . . . . . . . . . . . Robots Hacked . | . . . . . . . . . . . . . Non-combat . | . . . . . . . . . . . . . Combat . | . . . . . . . . . . . . . Robot Hacks Applied . | . . . . . . . . . . . . . Relay Couplers Released . | . . . . . . . . . . . . . Robots Rewired 1 | . . . . . . . . 1 . . . . Allies Hacked . | . . . . . . . . . . . . . Hacks Repelled . | . . . . . . . . . . . . . Allies | -11 -10 -10 -9 -9 -9 -8 -8 -7 -7 -7 -7 -6 -------- Run | Scr Mat Min Mat Min Exi Min Mat Fac Low Low Dat Pro Total Allies 2 | . . . . . . . . 1 . . . 1 Largest Group 1 | . . . . . . . . 1 . . . 1 Highest-Rated Group 94 | . . . . . . . . 37 . . . 94 Highest-Rated Ally 94 | . . . . . . . . 37 . . . 94 Total Orders . | . . . . . . . . . . . . . Ally Attacks 13 | . . . . . . . . . . . . 13 Total Damage 513 | . . . . . . . . . . . . 513 Kills 4 | . . . . . . . . . . . . 4 Allies Corrupted 1 | . . . . . . . . 1 . . . . Allies Melted . | . . . . . . . . . . . . . Intel | -11 -10 -10 -9 -9 -9 -8 -8 -7 -7 -7 -7 -6 ------- Run | Scr Mat Min Mat Min Exi Min Mat Fac Low Low Dat Pro Robot Analysis Total . | . . . . . . . . . . . . . Derelict Logs Recovered 6 | . . 1 . . . . . . 2 3 . . Drone Launches . | . . . . . . . . . . . . . Drone Recoveries . | . . . . . . . . . . . . . Exploration | -11 -10 -10 -9 -9 -9 -8 -8 -7 -7 -7 -7 -6 ------------- Run | Scr Mat Min Mat Min Exi Min Mat Fac Low Low Dat Pro Turns Passed 6828 | 43 491 450 226 855 212 243 620 1024 1136 897 95 536 Spaces Moved 5112 | 42 388 407 198 592 211 217 445 705 762 647 80 418 Core 3 | 3 . . . . . . . . . . . . Treads 14 | . . . . . . . . . 9 5 . . Legs . | . . . . . . . . . . . . . Wheels 5095 | 39 388 407 198 592 211 217 445 705 753 642 80 418 Hover . | . . . . . . . . . . . . . Flight . | . . . . . . . . . . . . . Fastest Speed 50 | 50 80 100 100 93 93 103 96 96 120 120 120 110 Average Speed 108 | 77 89 100 100 96 99 103 101 111 125 120 120 111 Slowest Speed 220 | 80 100 100 100 100 103 103 103 130 220 220 120 120 Overloaded Moves . | . . . . . . . . . . . . . Propulsion Burnouts . | . . . . . . . . . . . . . Robots Hopped . | . . . . . . . . . . . . . Cave-ins Triggered . | . . . . . . . . . . . . . Exploration Rate (%) 56 | 3 75 68 28 97 54 70 39 23 83 76 70 46 Regions Visited 12 Branch Regions 8 Pre-discovered Areas 5 | . 1 1 . . 1 . . . . 1 1 . Known Exits Taken 1 | . . . 1 . . . . . . . . . Unknown Exits Taken 11 | 1 1 1 . 1 1 1 1 1 1 1 1 . Scrap Searched 8 | . . . . 2 . 1 . . 2 2 . 1 Spaces Dug 65 | . 5 9 . 26 . . 5 1 11 . . 8 Terrain Destroyed 434 | . 55 31 35 172 . 15 22 45 21 . . 38 Melee 11 | . . . . . . . . . 10 . . 1 Projectile 20 | . 1 . . 2 . 1 . 5 11 . . . AOE 403 | . 54 31 35 170 . 14 22 40 . . . 37 Terrain Rammed . | . . . . . . . . . . . . . Walls Destroyed . | . . . . . . . . . . . . . Machines Disabled . | . . . . . . . . . . . . . Actions | -11 -10 -10 -9 -9 -9 -8 -8 -7 -7 -7 -7 -6 --------- Run | Scr Mat Min Mat Min Exi Min Mat Fac Low Low Dat Pro Total 5930 | 49 469 436 216 780 213 231 543 870 862 724 79 458 Wait 306 | . 10 12 5 90 . 9 19 61 40 42 . 18 Move 5100 | 41 387 406 197 591 210 216 444 704 761 646 79 418 Hop . | . . . . . . . . . . . . . Pick Up 46 | 2 15 1 1 8 . 1 8 7 2 . . 1 Fast Attach 42 | 6 5 . . 4 . . 7 10 3 6 . 1 Attach 23 | . 6 . 2 6 . . 2 5 1 . . 1 Detach 2 | . . . . 1 . . . 1 . . . . Swap 38 | . 1 3 4 11 2 2 4 5 3 . . 3 Drop 55 | . 6 1 1 9 1 . 12 18 2 5 . . Fire 273 | . 39 13 6 59 . 3 47 44 40 9 . 13 Melee 27 | . . . . . . . . . 10 14 . 3 Ram 3 | . . . . 1 . . . . . 2 . . Kick . | . . . . . . . . . . . . . Crush . | . . . . . . . . . . . . . Escape Stasis . | . . . . . . . . . . . . . Rewire 15 | . . . . . . . . 15 . . . . Trap . | . . . . . . . . . . . . . Miscellaneous . | . . . . . . . . . . . . . Route ------- -11/Scrapyard -10/Materials (discovered 3 exits: *Mat x2 / *Min) -10/Mines -9/Materials (discovered 2 exits: *Min x2) -9/Mines (discovered 3 exits: [*Mat x2] / *Exi) -9/Exiles -8/Mines -8/Materials -7/Factory -7/Lower Caves -7/Lower Caves (discovered 2 exits: [*Fac] / *Dat) -7/Data Miner -6/Proximity Caves History --------- Turn | Location | Event 12 | -11/Scrapyard | Discovered new exit (range 16) 44 | -11/Scrapyard | Entered Materials 254 | -10/Materials | Discovered new exit (range 11) 302 | -10/Materials | Build established: Mutant 351 | -10/Materials | Discovered new exit (range 14) 495 | -10/Materials | Discovered new exit (range 7) 535 | -10/Materials | Entered Mines 536 | -10/Mines | Learned location of Storage (-7) 582 | -10/Mines | Discovered new exit (range 11) 703 | -10/Mines | Learned Materials trap positions 706 | -10/Mines | Met a Derelict who couldn't figure out how to use a Trap Extractor 740 | -10/Mines | Received a Rocket Launcher from a helpful Derelict 985 | -10/Mines | Entered Materials 985 | -9/Materials | Evolved 2 slots: Propulsion x1, Utility x1 986 | -9/Materials | Loaded intel: 24 trap records 1014 | -9/Materials | Identified exit to Mines 1211 | -9/Materials | Entered Mines 1215 | -9/Mines | Met a Derelict bent on vengeance 1456 | -9/Mines | Build established: Scavenger-Mutant 1457 | -9/Mines | Assembled infested the area 1462 | -9/Mines | Assisted by a Guerilla fighting off Assembled 1508 | -9/Mines | A weapon hastily lodged in a ceiling crevice suddenly fell to the ground 1606 | -9/Mines | Lost 3 parts (1p1n1w) 1610 | -9/Mines | Discovered new exit (range 12) 1625 | -9/Mines | Met a Derelict shopkeep closing up shop 1833 | -9/Mines | Discovered new exit (range 5) 2062 | -9/Mines | Deemed a non-threat by the Exiles lab entrance 2062 | -9/Mines | Discovered new exit (range 5) 2066 | -9/Mines | Entered Exiles 2092 | -9/Exiles | Met 8R-AWN 2108 | -9/Exiles | Met EX-HEX 2193 | -9/Exiles | Met EX-DEC 2198 | -9/Exiles | Learned location of Zion (-6) 2267 | -9/Exiles | Discovered new exit (range 11) 2278 | -9/Exiles | Entered Mines 2514 | -8/Mines | Discovered new exit (range 7) 2521 | -8/Mines | Entered Materials 2521 | -8/Materials | Evolved 2 slots: Utility x1, Weapon x1 2923 | -8/Materials | Discovered new exit (range 10) 2927 | -8/Materials | Build established: Scavenger-Tank 3141 | -8/Materials | Entered Factory 3141 | -7/Factory | Evolved 2 slots: Utility x2 3303 | -7/Factory | Fabricated Imp. Cooling System (x1) 3685 | -7/Factory | Garrison activated, responded to threat 4018 | -7/Factory | Discovered new exit (range 16) 4165 | -7/Factory | Entered Lower Caves 4169 | -7/Lower Caves | Build established: Mutant 4370 | -7/Lower Caves | Learned 8 Factory zone layouts 4409 | -7/Lower Caves | Spotted B-75 Beast 4491 | -7/Lower Caves | Destroyed B-75 Beast 4632 | -7/Lower Caves | Lgt. Angular Momentum Engine stolen by Master Thief 4771 | -7/Lower Caves | Attacked by a delusional Derelict stockpiling parts 5010 | -7/Lower Caves | Learned Factory trap positions 5129 | -7/Lower Caves | Found Alien Artifact 5129 | -7/Lower Caves | Identified Core Expander 5129 | -7/Lower Caves | Installed Core Expander, added new Power slot 5170 | -7/Lower Caves | Discovered new exit (range 8) 5301 | -7/Lower Caves | Entered another Lower Caves area 5301 | -7/Lower Caves | Discovered new exit (range 10) 5302 | -7/Lower Caves | Encountered a Warlord checkpoint 5443 | -7/Lower Caves | Learned Factory terminal intel 5570 | -7/Lower Caves | Attracted the attention of an 0b10 checkpoint 6112 | -7/Lower Caves | Discovered new exit (range 15) 6198 | -7/Lower Caves | Entered Data Miner 6198 | -7/Data Miner | Discovered new exit (range 6) 6221 | -7/Data Miner | Met Data Miner 6244 | -7/Data Miner | Learned location of Section 7 (-2) 6244 | -7/Data Miner | Acquired the access code to Warlord's prototype stash 6263 | -7/Data Miner | Received God Mode back door access code from Data Miner 6293 | -7/Data Miner | Entered Proximity Caves 6327 | -6/Proximity Caves | Escorted by Enhanced Grunt 6374 | -6/Proximity Caves | Spotted B-75 Beast 6640 | -6/Proximity Caves | Attracted the attention of an 0b10 checkpoint 6827 | -6/Proximity Caves | Attracted the attention of an 0b10 outpost 6829 | -6/Proximity Caves | Self-destructed Last Messages --------------- 06661_ Gatling Laser fries itself beyond repair. 06661_ Acquired 55 matter. 06662_ Lgt. Treads fries itself beyond repair. 06663_ Imp. Heat Sink fries itself beyond repair. 06667_ Searching scrap... 06667_ Found Imp. Hacking Suite. 06667_ Found Fusion Compressor. 06667_ Found Mak. Transmission Jammer. 06667_ Found Adv. Terrain Scanner. 06667_ Found 17 Matter. 06669_ Acquired Fusion Compressor. 06673_ Acquired Adv. Terrain Scanner. 06674_ Acquired 10 matter. 06823_ C-30 ARC bursts open, deploying its payload. 06824_ Slug penetrates Wall. 06827_ Y-64 Sentinel: "DETECTED UNIDENTIFIED DERELICT." 06827_ Penetrated by Slug. 06827_ Slug penetrates Wall. 06828_ Rocket Launcher destroyed. 06828_ Penetrated by Slug. Map ----- +----------------------------------------------------+ | ## #??## ##????????## ##???????????????? | | # #???## ##??????????# #???????????????? | | # ????# ###?????????### ##???????????????? | | # ##??## ###???####?## ###??????????????? | | # #### ##### ### ##?????????????? | | # ## #?????????????? | | # #?????????????? | | # ## ## ##?????????????? | | ###?### ## #########??????????????? | | ??????## #??#####???????????????? | | ????#### ######## #??# ##??????????????? | | ???## #??????# #??# #??????????????? | | ???# #??????# ##### #??????????????? | | ???## #??????g ## #??????????????? | | #???### #??????#g ##??????????????? | | #?????## ?# ??#l #???????????????? | | #??????#### % Y#""?# #???????????????? | | ??????????## h ## #???????????????? | | ???????????## h ####???????????????? | | ????????????# ####??????????????????? | | ???????????# ##?????????????????????? | | ??????????? ## ##?????????????????????? | | ????????????? #?## #?????????????????????? | | ????????????? #??# ##?????????????????????? | | ????????????? ??# ##?????????????????????? | | ????????????? ?## @ #####?????????????????? | | ??????????????###### ## ##????????????????? | | ????????????????#"# ### #????????????????? | | ?????????????????# #?# ##????????????????? | | ?????????????????## ##?## ;##?????????????????? | | ??????????????????####???######??????????????????? | | ?????????????????????????????????????????????????? | | ?????????????????????????????????????????????????? | | ?????????????????????????????????????????????????? | | ?????????????????????????????????????????????????? | | ?????????????????????????????????????????????????? | | ?????????????????????????????????????????????????? | | ?????????????????????????????????????????????????? | | ?????????????????????????????????????????????????? | | ?????????????????????????????????????????????????? | | ?????????????????????????????????????????????????? | | ?????????????????????????????????????????????????? | | ?????????????????????????????????????????????????? | | ?????????????????????????????????????????????????? | | ?????????????????????????????????????????????????? | | ?????????????????????????????????????????????????? | | ?????????????????????????????????????????????????? | | | | | | | +----------------------------------------------------+ Best States ------------- Heat Dissipation 61 Energy Generation 18 Energy Capacity 250 Matter Stores 300 Matter Capacity 300 Sight Range 16 Terrain Scan Density 10 Armor Coverage 825 Evasion (%) 44 Recoil Reduction 1 Matter Filtering 30 Item Schematics ----------------- Arm. Wheel | -9/Materials | Hacked Lgt. Regenerative Plating | -7/Data Miner | Free Combat Drone Bay | -7/Data Miner | Free Tactical Coordination Suite | -7/Data Miner | Free Cloaking Device | -7/Data Miner | Free Robot Schematics ------------------ S-27 Virus | -7/Data Miner | Free G-50 Soldier | -7/Data Miner | Free G-67 Veteran | -7/Data Miner | Free X-72 Disruptor | -7/Data Miner | Free H-66 Slayer | -7/Data Miner | Free L-41 Fighter | -7/Data Miner | Free I-36 Angel | -7/Data Miner | Free I-47 Archangel | -7/Data Miner | Free Fabricated ------------ Imp. Cooling System | x1 | -7/Factory | Preloaded Alien Tech Used ----------------- Core Expander Achievements -------------- None Challenges ------------ None Game ------ Seed DataInsulatedMagmablaster Manual? 0 Play Time 00:58:23 Cumulative 285.7 hours Start 2021.05.23 @ 09:53:55 End 2021.05.23 @ 10:51:27 Sessions 1 Manual Loads 0 Difficulty Rogue Special Mode None Game No. 117 Rogue 117 Adventurer 0 Explorer 0 Win Type - Total 12 Types 10/0/1/1/0/0/0/0/0 Lore% 74 Gallery% 84 Achievement% 67 Wizard Run 0 Options --------- ASCII 0 Keyboard 0 Movement Mouse Keybinds 0 Fullscreen 2 Font 12/Smallcaps Map View 83x54 Tactical HUD 1 Map Filters NONE Filters NONE Steam X RUN: c942a2f9-7c3e-4148-b039-ce9c8242f14d